{"text_format":"1","workbook":"xlsx","n_sheets":4,"sheets":["TM_Application","Project Detailed Description","VF","TM_PART_D2_Budget"],"not_rendered":{"charts":0,"images":0,"macros":1,"external_links":0,"defined_names":56,"comments":0,"pivot_tables":0},"unopened":[],"bounds":{"document_bytes":16777216,"sheet_cells":100000,"rows_first":2000,"rows_last":500,"rows_between":2000,"halvings":0,"cell_chars":16384,"cell_head_chars":4096},"cells_cut":0,"cells_raw":0,"read":"whole","date_system":"1900"}

{"sheet":"TM_Application","index":0,"n_rows":1,"n_cols":5,"rows_kept":1,"cut":false,"hidden":true,"merged":[]}
["Left","Top","Right","Bottom","Ref"]

{"sheet":"Project Detailed Description","index":1,"n_rows":543,"n_cols":30,"rows_kept":543,"cut":false,"hidden":false,"merged":[[440,10,446,31],[439,20,439,26],[439,27,439,28],[437,2,437,31],[435,1,435,31],[347,0,347,32],[349,1,349,29],[317,27,317,28],[383,1,383,29],[407,1,407,30],[421,27,421,28],[395,1,403,31],[385,27,385,28],[383,30,383,32],[385,1,385,15],[450,20,450,26],[450,27,450,28],[461,20,461,26],[461,27,461,28],[218,1,226,31],[258,1,258,15],[283,1,283,15],[259,1,267,31],[217,1,217,15],[217,20,217,26],[236,1,244,31],[227,1,235,31],[302,1,310,31],[449,2,449,13],[448,2,448,18],[438,2,438,13],[281,1,281,31],[420,1,420,31],[351,1,351,15],[409,12,417,31],[422,1,430,31],[408,27,408,28],[352,1,360,31],[316,1,316,31],[385,20,385,26],[317,20,317,26],[351,20,351,26],[336,1,344,31],[268,1,276,31],[283,27,283,28],[284,1,292,31],[258,20,258,26],[315,1,315,31],[293,1,301,31],[370,1,378,31],[313,0,313,32],[381,0,381,32],[0,0,0,32],[2,0,2,32],[36,27,36,28],[37,1,37,15],[37,27,37,28],[37,20,37,26],[5,1,5,15],[36,20,36,26],[47,1,55,31],[38,1,46,31],[3,1,3,31],[35,1,35,31],[4,1,4,16],[24,1,32,31],[15,1,23,31],[5,20,5,26],[5,27,5,28],[213,0,213,32],[283,20,283,26],[279,0,279,32],[245,1,253,31],[258,27,258,28],[215,1,215,31],[535,16,538,31],[495,1,495,15],[256,1,256,31],[495,20,495,26],[495,27,495,28],[460,2,460,13],[473,1,481,31],[470,1,470,31],[459,2,459,18],[482,1,490,31],[472,1,472,15],[472,20,472,26],[472,27,472,28],[327,1,335,31],[317,1,317,15],[351,27,351,28],[433,0,433,32],[421,20,421,26],[361,1,369,31],[318,1,326,31],[406,1,406,26],[408,20,408,26],[451,10,457,31],[462,10,468,31],[70,1,78,31],[83,1,83,15],[59,20,59,26],[6,1,14,31],[58,1,58,31],[493,1,493,31],[104,0,104,32],[59,27,59,28],[84,1,92,31],[60,27,60,28],[145,1,153,31],[81,1,81,31],[60,20,60,26],[60,1,60,15],[61,1,69,31],[349,30,349,32],[386,1,394,31],[108,1,108,15],[127,1,135,31],[118,1,126,31],[109,1,117,31],[108,27,108,28],[136,1,144,31],[217,27,217,28],[82,27,82,28],[83,27,83,28],[83,20,83,26],[82,20,82,26],[93,1,101,31],[106,1,106,31],[156,1,156,32],[157,27,157,28],[158,1,158,15],[158,20,158,26],[158,27,158,28],[159,1,167,31],[168,1,176,31],[177,1,185,31],[190,1,190,32],[191,27,191,28],[192,1,192,15],[192,20,192,26],[192,27,192,28],[193,1,201,31],[539,1,539,9],[539,10,539,31],[540,1,540,9],[540,10,540,31],[541,1,541,9],[541,10,541,31],[542,1,542,9],[542,10,542,31],[202,1,210,31],[496,1,504,31],[505,1,512,31],[514,1,514,9],[514,10,514,27],[515,1,515,31],[516,1,531,2],[516,3,517,31],[518,3,519,31],[520,3,522,31],[523,3,525,31],[526,3,528,31],[529,3,531,31],[534,1,534,15],[534,16,534,31],[535,1,538,15]]}
["SECTION B - DETAILED DESCRIPTION"]
[]
["B.1 PROJECT IDENTIFICATION"]
[null,"B.1.1 Background and history of the project (problems/ challenges to be addressed/ target groups)                                                              \n- Describe how the project idea and the partnership were developed \n- What are the common Cross-border problems and challenges that will be tackled by the project? Please describe the relevance of your project for the programme area in terms of common challenges and/or joint assets addressed. \n- What is the project’s approach in addressing these common challenges and/or joint assets and what is new about the approach the project takes? Please describe new solutions that will be developed during the project and/or existing solutions that will be adopted and implemented during the project lifetime and in what way the approach goes beyond existing practice in the sector/programme area/participating countries.\n- Which are the main target groups? Please describe who is benefiting (e.g. Beneficiaries, regions, end-users etc.) from the project and in what way."]
[null,"The maximum total number of characters is 4500"]
[null,"(please do not exceed 1500 characters in each box)",null,null,null,null,null,null,null,null,null,null,null,null,null,null,null,null,null,null,"Number of characters ",null,null,null,null,null,null,{"$f":"LEN(B7)+LEN(B16)+LEN(B25)","v":0}]
[]
[]
[]
[]
[]
[]
[]
[]
[]
[]
[]
[]
[]
[]
[]
[]
[]
[]
[]
[]
[]
[]
[]
[]
[]
[]
[]
[]
[]
[null,"B.1.2 Objectives of the Project                                                                                                                                                   \nWhat is the overall objective of the project and how does it link to the programme’s objective? Specify one project main objective and describe its contribution to the programme priority specific objective."]
[null,"The maximum number of characters is 2000"]
[null,"(please do not exceed 1000 characters in each box)",null,null,null,null,null,null,null,null,null,null,null,null,null,null,null,null,null,null,"Number of characters ",null,null,null,null,null,null,{"$f":"LEN(B39)+LEN(B48)","v":0}]
[]
[]
[]
[]
[]
[]
[]
[]
[]
[]
[]
[]
[]
[]
[]
[]
[]
[]
[]
[]
[null,"B.1.3 Expected outputs of the project (tangible and visible outputs or products relating to project activities)\n Please describe project main outputs that will be delivered based on the activities carried out in the project. Please provide a short explanation on the defined specific objectives and their link with the project main outputs. Describe your project main output and its contribution to project specific objectives."]
[null,"The maximum total number of characters is 2000"]
[null,"(please do not exceed 1000 characters in each box)",null,null,null,null,null,null,null,null,null,null,null,null,null,null,null,null,null,null,"Number of characters ",null,null,null,null,null,null,{"$f":"LEN(B62)+LEN(B71)","v":0}]
[]
[]
[]
[]
[]
[]
[]
[]
[]
[]
[]
[]
[]
[]
[]
[]
[]
[]
[]
[]
[null,"B.1.4 Expected results (direct and immediate effects resulting from the project)                                                                                                           What are the project results? Describe their contribution and link (if applicable) to the result indicators of the Programme."]
[null,"The maximum total number of characters is 2000"]
[null,"(please do not exceed 1000 characters in each box)",null,null,null,null,null,null,null,null,null,null,null,null,null,null,null,null,null,null,"Number of characters ",null,null,null,null,null,null,{"$f":"LEN(B85)+LEN(B94)","v":0}]
[]
[]
[]
[]
[]
[]
[]
[]
[]
[]
[]
[]
[]
[]
[]
[]
[]
[]
[]
[]
["B.2 METHODOLOGICAL APPROACH"]
[]
[null,"B.2.1 Project methodology/Roles - Tasks of Beneficiaries                                                                                                                            \n- Describe the methodological approach of the project and provide a brief description of all the work packages composing the project and their objectives. Please also identify activities' interlinks (sequence, combination, interrelation between activities-deliverables).\n- Please include explanation of how will Beneficiaries be involved in the project (who will do what)."]
[null,"The maximum total number of characters is 5000"]
[null,"(please do not exceed 1000 characters in each box)",null,null,null,null,null,null,null,null,null,null,null,null,null,null,null,null,null,null,"Number of characters ",{"$f":"LEN(B110)+LEN(B119)+LEN(B128)+LEN(B137)+LEN(B146)","v":0}]
[]
[]
[]
[]
[]
[]
[]
[]
[]
[]
[]
[]
[]
[]
[]
[]
[]
[]
[]
[]
[]
[]
[]
[]
[]
[]
[]
[]
[]
[]
[]
[]
[]
[]
[]
[]
[]
[]
[]
[]
[]
[]
[]
[]
[]
[]
[]
[null,"B.2.2 Roles - Tasks of Associated Partners (if applicable)\nIn case of associated partner, determine the project partner to which the organisation is related to (if applicable)\nIn case of associated partner, describe the organisation's role in the project (if applicable\n"]
[null,"The maximum total number of characters is 3000"]
[null,"(please do not exceed 1000 characters in each box)",null,null,null,null,null,null,null,null,null,null,null,null,null,null,null,null,null,null,"Number of characters ",null,null,null,null,null,null,{"$f":"LEN(B160)+LEN(B169)+LEN(B178)","v":0}]
[]
[]
[]
[]
[]
[]
[]
[]
[]
[]
[]
[]
[]
[]
[]
[]
[]
[]
[]
[]
[]
[]
[]
[]
[]
[]
[]
[]
[]
[]
[]
[null,"B.2.3 Activities outside the programme area (if applicable)\nPlease list activities to be carried out outside the programme area. Describe how these activities will benefit the programme area.\nPlease indicate the total budget of activities to be carried out outside the programme area (indicative)\nERDF outside the programme area (indicative): <... EUR>\n% of total ERDF (indicative): <... %>"]
[null,"The maximum total number of characters is 2000"]
[null,"(please do not exceed 1000 characters in each box)",null,null,null,null,null,null,null,null,null,null,null,null,null,null,null,null,null,null,"Number of characters ",null,null,null,null,null,null,{"$f":"LEN(B194)+LEN(B203)","v":0}]
[]
[]
[]
[]
[]
[]
[]
[]
[]
[]
[]
[]
[]
[]
[]
[]
[]
[]
[]
[]
["B.3  MANAGEMENT"]
[]
[null,"B.3.1 Lead Beneficiary and Beneficiaries' Competence (Experience, Structure, Personnel, Resources, etc.)\n- Which are the organisation's competences related opt the project activities?\n- Which is the institutional and financial capacity?\n- Which are the experiences relevant for the project?\n- Which is the organisation's capacity to directly or indirectly influence local/ regional/ national policies?\n- What are the reasons for the selection of Lead Beneficiary? "]
[null,"The maximum total number of characters is 3000"]
[null,"(please do not exceed 1000 characters in each box)",null,null,null,null,null,null,null,null,null,null,null,null,null,null,null,null,null,null,"Number of characters ",null,null,null,null,null,null,null,null,{"$f":"LEN(B219)+LEN(B228)+LEN(B237)+LEN(B246)","v":0}]
[]
[]
[]
[]
[]
[]
[]
[]
[]
[]
[]
[]
[]
[]
[]
[]
[]
[]
[]
[]
[]
[]
[]
[]
[]
[]
[]
[]
[]
[]
[]
[]
[]
[]
[]
[]
[]
[]
[null,"B.3.2 Project management and coordination (structures, decision making procedures, internal communication, etc.)                                         \nDescribe how the management on the strategic and operational level will be carried out in the project, specifically:\n- structure, responsibilities and procedures for the day-to-day management and co-ordination;\n- communication within the partnership;\n- reporting and evaluation procedures;\n- risk and quality management.                                     "]
[null,"The maximum total number of characters is 2000"]
[null,"(please do not exceed 1000 characters in each box)",null,null,null,null,null,null,null,null,null,null,null,null,null,null,null,null,null,null,"Number of characters ",null,null,null,null,null,null,{"$f":"LEN(B260)+LEN(B269)","v":0}]
[]
[]
[]
[]
[]
[]
[]
[]
[]
[]
[]
[]
[]
[]
[]
[]
[]
[]
[]
[]
["B.4 Β.4 INFORMATION AND COMMUNICATION"]
[]
[null,"B.4.1 Information and Publicity Strategy                                                                                                                                                               \nPlease describe i. the basic structure of the Project’s Communication Plan (timetable, milestones etc), ii. the information and publicity measures to be carried out (website, events, publicity material etc), iii. the means of communication to be used to disseminate the Project’s outputs, results and achievements (social media, brochures, promotional material etc) and iv. how the anticipated project results are going to be promoted at a national and/or at a regional level."]
[null,"The maximum total number of characters is 3000"]
[null,"(please do not exceed 1000 characters in each box)",null,null,null,null,null,null,null,null,null,null,null,null,null,null,null,null,null,null,"Number of characters ",null,null,null,null,null,null,{"$f":"LEN(B285)+LEN(B294)","v":0}]
[]
[]
[]
[]
[]
[]
[]
[]
[]
[]
[]
[]
[]
[]
[]
[]
[]
[]
[]
[]
[]
[]
[]
[]
[]
[]
[]
[]
[]
["B.5  PROJECT READINESS"]
[]
[null,"B.5.1 Preparatory and administrative activities undertaken\nDescribe the maturity of the project in terms of completion of the administrative procedures that allow the implementation of the project i.e. licenses, designs, permits, land acquisition, tenders documents, etc. This information should be provided for all project activities (services, equipment, infrastructure)."]
[null,"The maximum total number of characters is 3000"]
[null,"(please do not exceed 1000 characters in each box)",null,null,null,null,null,null,null,null,null,null,null,null,null,null,null,null,null,null,"Number of characters ",null,null,null,null,null,null,null,null,{"$f":"LEN(B319)+LEN(B328)+LEN(B337)","v":0}]
[]
[]
[]
[]
[]
[]
[]
[]
[]
[]
[]
[]
[]
[]
[]
[]
[]
[]
[]
[]
[]
[]
[]
[]
[]
[]
[]
[]
[]
["B.6  SUSTAINABILITY OF RESULTS"]
[]
[null,"B.6.1 Sustainability, durability and transferability of main outputs delivered in the project\nHow will the project main outputs be further used once the project has been finalised? Please describe concrete measures (including eg institutional structures, financial sources etc) taken during and after project implementation to ensure the durability of the project main outputs. If relevant, please explain who will be responsible and/or the owner of the output.\n\nHow will the project ensure that the project's outputs are applicable and replicable by other organisations/regions/countries outside of the current partnership? Please describe to what extent it will be possible to transfer the outputs to other organisations/regions/countries outside of the current partnership."]
[null,"The maximum total number of characters is 3000"]
[null,"(please do not exceed 1000 characters in each box)",null,null,null,null,null,null,null,null,null,null,null,null,null,null,null,null,null,null,"Number of characters ",null,null,null,null,null,null,null,null,{"$f":"LEN(B353)+LEN(B362)+LEN(B371)","v":0}]
[]
[]
[]
[]
[]
[]
[]
[]
[]
[]
[]
[]
[]
[]
[]
[]
[]
[]
[]
[]
[]
[]
[]
[]
[]
[]
[]
[]
[]
["B.7  CROSS-BORDER COOPERATION & ADDED VALUE"]
[]
[null,"B.7.1 Cross Border cooperation\nHow is the cross border cooperation demonstrated in order to achieve the project’s objectives and results? Please explain why the project objectives cannot be efficiently reached acting only on a national/regional/local level and/or describe what benefits the project Beneficiaries/target groups/project area/programme area gain in taking a cross border approach."]
[null,"The maximum total number of characters is 2000"]
[null,"(please do not exceed 1000 characters in each box)",null,null,null,null,null,null,null,null,null,null,null,null,null,null,null,null,null,null,"Number of characters ",null,null,null,null,null,null,{"$f":"LEN(B387)+LEN(B396)","v":0}]
[]
[]
[]
[]
[]
[]
[]
[]
[]
[]
[]
[]
[]
[]
[]
[]
[]
[]
[]
[]
[null,"B.7.2 Intensity of Cross-Border Cooperation"]
[null,"According to Art.12 from 1299/2013 par.4 “Beneficiaries shall cooperate in the development and implementation of operations. In addition, they shall cooperate in the staffing or the financing of operations, or in both. Please select the applied cooperation with X and describe how this is achieved."]
[null,"The maximum total number of characters is 500",null,null,null,null,null,null,null,null,null,null,null,null,null,null,null,null,null,null,"Number of characters ",null,null,null,null,null,null,{"$f":"LEN(M410)","v":0}]
[]
[null,null,null,null,"Joint Development  "]
[]
[null,null,null,null,"Joint Implementation "]
[]
[null,null,null,null,"Joint Staffing "]
[]
[null,null,null,null,"Joint Financing "]
[]
[]
[]
[null," B.7.3  Capitalisation                                                                                                                                                                                                             \nIn which way does the project capitalize previous cooperation and experience (if applicable), especially in the Programme area?\n- Capitalization of Beneficiaries’  know-how experience\n- Capitalization of Beneficiaries’ experience in Cross border Cooperation activities\n- Capitalization of previous cooperation among current Beneficiaries\n- Capitalization of previous relevant projects   "]
[null,"The maximum total number of characters is 1000",null,null,null,null,null,null,null,null,null,null,null,null,null,null,null,null,null,null,"Number of characters ",null,null,null,null,null,null,{"$f":"LEN(B423)","v":0}]
[]
[]
[]
[]
[]
[]
[]
[]
[]
[]
[]
["B.8  COMPATIBILITY WITH EU AND NATIONAL POLICIES"]
[]
[null,"B.8.1 Consistency of the project with EU horizontal principles                                                                                                                                    \nPlease describe if applicable, the effect of the project to each one of the horizontal principles. Please select with an X only one option per principle and provide the justification. "]
[]
[null,null,"Equal opportunities and non-discrimination (including provision of accessibility of disabled persons)"]
[null,null,"Please state if the project will : "]
[null,"The maximum total number of characters is 750",null,null,null,null,null,null,null,null,null,null,null,null,null,null,null,null,null,null,"Number of characters ",null,null,null,null,null,null,{"$f":"LEN(K441)","v":0}]
[]
[null,null,null,null,"Consistent "]
[]
[null,null,null,null,"Neutral"]
[]
[null,null,null,null,"Non Consistent "]
[]
[]
[null,null,"Sustainable Development"]
[null,null,"Please state if the project will : "]
[null,"The maximum total number of characters is 750",null,null,null,null,null,null,null,null,null,null,null,null,null,null,null,null,null,null,"Number of characters ",null,null,null,null,null,null,{"$f":"LEN(K452)","v":0}]
[]
[null,null,null,null,"Consistent "]
[]
[null,null,null,null,"Neutral"]
[]
[null,null,null,null,"Non Consistent "]
[]
[]
[null,null,"Equality between men and women"]
[null,null,"Please state if the project will : "]
[null,"The maximum total number of characters is 750",null,null,null,null,null,null,null,null,null,null,null,null,null,null,null,null,null,null,"Number of characters ",null,null,null,null,null,null,{"$f":"LEN(K463)","v":0}]
[]
[null,null,null,null,"Consistent "]
[]
[null,null,null,null,"Neutral"]
[]
[null,null,null,null,"Non Consistent "]
[]
[]
[null,"B.8.2 Contribution to other EU, National, Regional and Local policies.                                                             \nPlease describe the project’s contribution or achieved synergies and complementarities with relevant EU/regional/national strategies, instruments and policies; in particular, those concerning the project or programme area. "]
[null,"The maximum total number of characters is 2000"]
[null,"(please do not exceed 1000 characters in each box)",null,null,null,null,null,null,null,null,null,null,null,null,null,null,null,null,null,null,"Number of characters ",null,null,null,null,null,null,{"$f":"LEN(B474)+LEN(B483)","v":0}]
[]
[]
[]
[]
[]
[]
[]
[]
[]
[]
[]
[]
[]
[]
[]
[]
[]
[]
[]
[]
[null,"B.8.3 Synergy with EUSAIR strategy\nPlease describe the project’s contribution or achieved synergies, with the EU Strategy for the Adriatic and Ionian Region (EUSAIR)."]
[null,"The maximum total number of characters is 2000"]
[null,"(please do not exceed 1000 characters in each box)",null,null,null,null,null,null,null,null,null,null,null,null,null,null,null,null,null,null,"Number of characters ",null,null,null,null,null,null,null,null,{"$f":"LEN(B497)+LEN(B506)","v":0}]
[]
[]
[]
[]
[]
[]
[]
[]
[]
[]
[]
[]
[]
[]
[]
[]
[]
[]
[null,"Lead Beneficiary Confirmation"]
["\n\n               \n","By signing the Application Form the Lead Beneficiary hereby confirms that "]
[null,null,null,"­ the project has not neither will receive any other EU funding (except for the funding indicated in this Application form) during the whole duration of its implementation."]
[]
[null,null,null,"­ the project is in line with the relevant EU and national legislation and policies of the countries involved."]
[]
[null,null,null,"­ all Beneficiaries in the Partnership receiving funding from the programme are eligible bodies as defined in the programme"]
[]
[]
[null,null,null,"­ all Beneficiaries described in Section C of the Application Form are committed to taking part in the projects’ activities"]
[]
[]
[null,null,null,"­ the information is accurate and true to the best knowledge of the Lead Beneficiary"]
[]
[]
[null,null,null," - The project budget and costs are in line with the limits set in the Call for proposals"]
[]
[]
[]
[]
[null,"Signature of the Lead Beneficiary",null,null,null,null,null,null,null,null,null,null,null,null,null,null,"Official Stamp of the Lead Beneficiary's Institution if available "]
[]
[]
[]
[]
[null,"Name of the signatory"]
[null,"Title of the signatory"]
[null,"Lead Beneficiary's Institution"]
[null,"Date of signature"]

{"sheet":"VF","index":2,"n_rows":139,"n_cols":4,"rows_kept":139,"cut":false,"hidden":true,"merged":[]}
["Coutries",null,"Indicators","Measurements"]
["Italy",null,"Output Indicators 1.1","Output Indicators 1.1"]
["Greece",null,"O0515 Number of supported innovation-related cross border cooperation structures and networks ","Number"]
[null,null,"O0516 Number of innovation support tools/approaches/techniques introduced through cross-border co-operation ","Number"]
[null,null,"CO26 Number of enterprises cooperating with research institutions ","Number"]
[]
[]
[]
["Partners",null,"Result Indicators 1.1","Result Indicators 1.1"]
["LP1",null,"RO501 Level of capacity of businesses and  innovation stakeholders to utilise the available innovation support services and clusters\n\n","%"]
["P2"]
["P3"]
["P4"]
["P5"]
["P6",null,"Output Indicators 1.2","Output Indicators 1.2"]
["P7",null,"O0517 Number of supported cross-border knowledge transfer structures and networks for SMEs ","Number"]
["P8",null,"O0518 Number of incubators supported (business plans, feasibility studies, etc.)","Number"]
["P9"]
["P10"]
[null,null,"Result Indicators 1.2","Result Indicators 1.2"]
[null,null,"R0502 Number of enterprises in NACE sections J and M \n","Number"]
["Type of Partner"]
["Lead Beneficiary"]
["Project Partner",null,"Output Indicators 2.1","Output Indicators 2.1"]
["Observer Partner",null,"O0519 Number of jointly developed management and support tools in the field of natural and cultural heritage ","Number"]
[]
["Legal Status"]
["public"]
["governed by public law"]
["private organization",null,"Result Indicators 2.1","Result Indicators 2.1"]
[null,null,"R0503 Level of capacity for the stakeholders in the fields of natural and cultural heritage protection and tourism to sustainably valorise natural and cultural heritage as a growth asset","%"]
[]
["NUTS"]
["EL211 Arta",null,"Output Indicators  2.2","Output Indicators  2.2"]
["EL212 Thesprotia",null,"O0520 Number of jointly developed management and support tools in the field of biodiversity and environmental protection ","number"]
["EL213 Ioannina",null,"CO09 Increase in expected number of visits to supported sites of cultural and natural heritage and attractions","visits/year "]
["EL214 Preveza"]
["EL221 Zakynthos"]
["EL222 Kerkyra",null,"Result Indicators 2.2","Result Indicators 2.2"]
["EL223 Kefallinia",null,"R0504 Total protected site areas in the eligible Programme regions","km2"]
["EL224 Lefkada"]
["EL231 Aitoloakarnania"]
["EL232 Achaia"]
["IEL233 leia",null,"Output Indicators  2.3","Output Indicators  2.3"]
["ITF43 Taranto",null,"O0521 Number of supported cross border cooperation structures and networks in the field of environmental technologies ","Number"]
["ITF44 Brindisi"]
["ITF45 Lecce"]
["ITF46 Foggia",null,"Result Indicators 2.3","Result Indicators 2.3"]
["ITF47 Bari",null,"Ro505 Level of capacity of regional and local authorities and public utilities operators to integrate environmental friendly processes and technologies in their operations with special attention to the coastal and maritime zones","%"]
["ITF48 Barletta-Andria-Trani"]
[]
[]
[null,null,"Output Indicators 3.1","Output Indicators 3.1"]
[null,null,"O0522 Number of supported cross border cooperation structures and networks in the field of maritime mobility and transport ","Number"]
[null,null,"O0523 Number of development plans/initiatives in the field of maritime mobility and transport ","Number"]
["Priority Axis"]
["1. Innovation and Competitiveness",null,"Result Indicators 3.1","Result Indicators 3.1"]
["2. Integrated Environmental Management",null,"R0506 Maritime transport of passengers: Number of passengers embarked and disembarked in Programme Area Ports (in 1000 )","Passenger"]
["3. Cross Border and Sustainable Transport System"]
["4. Technical Assistance"]
[null,null,"Output Indicators 3.2","Output Indicators 3.2"]
[null,null,"O0524 Number of supported cross border cooperation structures and networks in the field of environmentally-friendly mobility and transport ","Number"]
[]
[]
["Investment  Priority",null,"Result Indicators 3.2","Result Indicators 3.2"]
["1b. Promoting business investment in R&I, developing links and synergies between enterprises, research and development centres and the higher education sector,",null," R0507 Annual road freight transport loaded in the Programme Area (in 1000) ","tonne"]
["3a. Promoting entrepreneurship, in particular by facilitating the economic exploitation of new ideas and fostering the creation of new firms, including through business incubators"]
["6c.Conserving, protecting, promoting and developing natural and cultural heritage"]
["6d. Protecting and restoring biodiversity and soil and promoting ecosystem services, including through Natura 2000, and green infrastructure",null,"Output Indicators 4.1","Output Indicators 4.1"]
["6f. Promoting innovative technologies to improve environmental protection and resource efficiency in the waste sector, water sector and with regard to soil, or to reduce air pollution",null,"O0509 Number of calls","Number"]
["7b. Enhancing regional mobility by connecting secondary and tertiary nodes to TEN-T infrastructure, including multimodal nodes",null,"O0510 Number of projects approved","Number"]
["7c. Developing and improving environmentally-friendly (including low noise) and low-carbon transport systems, including inland waterways and maritime transport, ports, multimodal links and airport infrastructure, in order to promote sustainable regional and local mobility",null,"O0511 Number of events and workshops","Number"]
["Ta Technical Assistance",null,"O0512 Number of  seminars and trainings for applicants and beneficiaries","Number"]
[null,null,"O0513 Studies, reports and surveys on strategic relevance for the Programme","Number"]
[null,null,"O0514 Number of INTERREG V GR-IT Programme Staff","Number"]
[]
[]
[]
[]
["Specific Objective (SO)"]
["1.1 Delivering innovation support services and developing clusters across borders to foster competitiveness"]
["1.2 Supporting the incubation of innovative specialized micro and small enterprises in thematic sectors of interest to the Programme Area"]
["2.1 Valorisation of cultural heritage and natural resources as a territorial asset of the Programme Area"]
["2.2 - Improvement of joint management and governance plans for biodiversity of coastal and rural ecosystems, paying attention on natural resources and protected areas and development of environmental protection measures"]
["2.3 Developing and testing of innovative technologies/ tools to reduce marine and air pollution"]
["3.1 Boosting maritime transport, short-sea shipping capacity and cross-border ferry connectivity"]
["3.2 Improving cross-border coordination among transport stakeholders on introducing multimodal environmentally-friendly solutions"]
["4.1 To implement efficiently the cross border programme"]
[]
[]
[]
[]
["WP"]
[1]
[2]
[3]
[4]
[5]
[6]
[]
[]
["VAT"]
["Recoverable"]
["Non recoverable"]
["Partly"]
[]
["VAT-2"]
["Wholy"]
["Partly"]
[]
[]
[150000]
[600000]
["€"]
[]
["National Counterpart Type"]
["National Public Funding"]
["National Private Funding"]
[]
[]
["Thematic Objective"]
["1 Strengthening research, technological development and innovation "]
["3 Enhancing the competitiveness of small and medium-sized enterprises "]
["6 Preserving and protecting the environment and promoting resource efficiency "]
["7 Promoting transport and removing bottlenecks in key network infrastructures"]
["T Technical Assistance"]
[]
[]
[]
[]
["Staff Cost Calculation Methode"]
["Flat Rate"]
["Real Cost"]
[]
[]
[]
["Office and Administration Calculation Methode"]
["Flat Rate"]
["Real Cost"]

{"sheet":"TM_PART_D2_Budget","index":3,"n_rows":1,"n_cols":5,"rows_kept":1,"cut":false,"hidden":true,"merged":[]}
["Left","Top","Right","Bottom","Ref"]